fUST/lending_fUST_20240708
["ID","MTS","AMOUNT","RATE_DAILY","PERIOD"]
[331432945,1720401038465,-500.0,0.00060273,120]
[331432947,1720401038476,-3000.0,0.00060328,120]
[331432949,1720401038487,-999.0,0.00061,120]
[331432951,1720401038497,-499.85,0.00061899,120]
[331432954,1720401038508,-162.25135059,0.000619,28]
[331432957,1720401038518,-509.59890796,0.00061999,120]
[331432959,1720401038528,-1042.5,0.00061999,120]
[331432961,1720401038537,-1303.72,0.00061999,120]
[331432963,1720401038548,-834.23,0.00061999,120]
[331432965,1720401038559,-278.19388768,0.00062,120]
[331432968,1720401038570,-6002.539,0.00062,120]
[331432970,1720401038580,-6002.54,0.00062,120]
[331432972,1720401038591,-6002.54,0.00062,120]
[331432973,1720401038714,-6002.54,0.00062,120]
[331432974,1720401038725,-6002.54,0.00062,120]
[331432975,1720401038736,-2000.0,0.000621,120]
[331432976,1720401038746,-2000.0,0.000621,120]
[331432977,1720401038756,-1772.47889304,0.000621,120]
[331432978,1720401038769,-227.52110696,0.000621,120]
[331432979,1720401038779,-2000.0,0.000621,120]
[331432980,1720401038789,-2000.0,0.000621,120]
[331432981,1720401038799,-2000.0,0.000621,120]
[331432982,1720401038809,-2000.0,0.000621,120]
[331432983,1720401038819,-2000.0,0.000621,120]
[331432984,1720401038829,-2000.0,0.000621,120]
[331432985,1720401038839,-2000.0,0.000621,120]
[331432986,1720401038848,-272.2178093,0.00062322,2]
[331432987,1720401038858,-272.21780926,0.00062322,2]
[331432988,1720401038868,-272.21780926,0.00062323,2]
[331432989,1720401038878,-272.21780926,0.00062323,2]
[331432990,1720401038888,-272.21780926,0.00062323,2]
[331432991,1720401038897,-610.61415677,0.000624,120]
[331433116,1720401042468,-693.10584323,0.000624,120]
[331433117,1720401042480,-1042.5,0.00062401,120]
[331433118,1720401042491,-264.38089777,0.00062401,120]
[331433119,1720401042503,-378.396,0.00062401,120]
[331433160,1720401043462,-191.45310223,0.00062401,120]
[331433161,1720401043473,-500.0,0.00062421,120]
[331433162,1720401043483,-500.0,0.00062421,120]
[331433163,1720401043492,-500.0,0.00062421,120]
[331433164,1720401043502,-500.0,0.00062421,120]
[331433165,1720401043511,-500.0,0.00062421,120]
[331433166,1720401043520,-500.0,0.00062421,120]
[331433167,1720401043530,-799.46,0.00062421,120]
[331433168,1720401043539,-500.0,0.00062421,2]
[331433169,1720401043549,-1042.5,0.00062421,120]
[331433170,1720401043557,-1042.5,0.00062421,120]
[331433171,1720401043567,-1303.72,0.00062421,120]
[331433172,1720401043576,-1201.2431955,0.00062421,120]
[331433173,1720401043623,-102.4768045,0.00062421,120]
[331433174,1720401043632,-834.23,0.00062421,120]
[331433175,1720401043642,-834.23,0.00062421,120]
[331433176,1720401043651,-500.0,0.00062422,120]
[331433177,1720401043660,-500.0,0.00062422,120]
[331433178,1720401043670,-500.0,0.00062422,120]
[331433179,1720401043682,-303.80334167,0.00062422,120]
[331433180,1720401043691,-335.20857531,0.00062422,120]
[331433181,1720401043701,-500.0,0.00062422,120]
[331433182,1720401043710,-500.0,0.00062422,120]
[331433183,1720401043719,-500.0,0.00062422,120]
[331433184,1720401043729,-500.0,0.00062422,120]
[331433185,1720401043738,-500.0,0.00062422,120]
[331433186,1720401043747,-500.0,0.00062422,120]
[331433187,1720401043757,-514.025,0.00062422,120]
[331433188,1720401043766,-500.0,0.00062422,120]
[331433190,1720401043775,-500.0,0.00062422,120]
[331433192,1720401043785,-500.0,0.00062422,120]
[331433194,1720401043794,-500.0,0.00062422,120]
[331433195,1720401043803,-500.0,0.00062422,120]
[331433197,1720401043812,-500.0,0.00062422,120]
[331433198,1720401043822,-500.0,0.00062422,120]
[331433199,1720401043831,-500.0,0.00062422,120]
[331433200,1720401043840,-500.0,0.00062422,120]
[331433201,1720401043850,-500.0,0.00062422,120]
[331433202,1720401043859,-500.0,0.00062422,120]
[331433203,1720401043868,-500.0,0.00062422,120]
[331433204,1720401043878,-500.0,0.00062422,120]
[331433205,1720401043887,-500.0,0.00062422,120]
[331433206,1720401043896,-500.0,0.00062422,120]
[331433207,1720401043906,-500.0,0.00062422,120]
[331433208,1720401043915,-500.0,0.00062422,120]
[331433209,1720401043930,-500.0,0.00062422,120]
[331433210,1720401043940,-150.67023449,0.00062422,120]
[331433211,1720401043950,-500.0,0.00062422,120]
[331433212,1720401043959,-500.0,0.00062422,120]
[331433213,1720401043971,-500.0,0.00062422,120]
[331433214,1720401043980,-500.0,0.00062422,120]
[331433215,1720401043990,-506.5314136,0.00062422,120]
[331433216,1720401043999,-500.0,0.00062422,120]
[331433217,1720401044008,-500.0,0.00062422,120]
[331433218,1720401044018,-500.0,0.00062422,120]
[331433219,1720401044027,-500.0,0.00062422,120]
[331433220,1720401044036,-500.0,0.00062422,120]
[331433221,1720401044049,-500.0,0.00062422,120]
[331433222,1720401044061,-500.0,0.00062422,120]
[331433223,1720401044072,-500.0,0.00062422,120]
[331433224,1720401044084,-511.84595655,0.00062422,120]
[331433225,1720401044095,-799.46,0.00062422,120]
[331433226,1720401044107,-799.46,0.00062422,120]
[331433227,1720401044118,-799.46,0.00062422,120]
[331433228,1720401044129,-799.46,0.00062422,120]
[331433229,1720401044140,-799.46,0.00062422,120]
[331433230,1720401044151,-799.46,0.00062422,120]
[331433231,1720401044161,-799.46,0.00062422,120]
[331433232,1720401044171,-799.46,0.00062422,120]
[331433233,1720401044184,-799.46,0.00062422,120]
[331433234,1720401044196,-799.46,0.00062422,120]
[331433235,1720401044207,-799.46,0.00062422,120]
[331433236,1720401044217,-799.46,0.00062422,120]
[331433237,1720401044228,-799.46,0.00062422,120]
[331433238,1720401044238,-799.46,0.00062422,120]
[331433239,1720401044248,-799.46,0.00062422,120]
[331433240,1720401044259,-799.46,0.00062422,120]
[331433241,1720401044270,-799.46,0.00062422,120]
[331433242,1720401044280,-799.46,0.00062422,120]
[331433243,1720401044292,-799.46,0.00062422,120]
[331433244,1720401044303,-799.46,0.00062422,120]
[331433245,1720401044313,-799.46,0.00062422,120]
[331433246,1720401044324,-799.46,0.00062422,120]
[331433247,1720401044335,-799.68796692,0.00062422,120]
[331433248,1720401044345,-1042.5,0.00062422,120]
[331433249,1720401044357,-1042.5,0.00062422,120]
[331433250,1720401044368,-1042.5,0.00062422,120]
[331433251,1720401044379,-1042.5,0.00062422,120]
[331433252,1720401044389,-1042.5,0.00062422,120]
[331433253,1720401044400,-1042.5,0.00062422,120]
[331433254,1720401044410,-1042.5,0.00062422,120]
[331433255,1720401044421,-1042.5,0.00062422,120]
[331433256,1720401044435,-1042.5,0.00062422,120]
[331433257,1720401044445,-1042.5,0.00062422,120]
[331433258,1720401044455,-1042.5,0.00062422,120]
[331433259,1720401044466,-1042.5,0.00062422,120]
[331433260,1720401044476,-1042.5,0.00062422,120]
[331433261,1720401044486,-1042.5,0.00062422,120]
[331433262,1720401044496,-1042.5,0.00062422,120]
[331433263,1720401044506,-1042.5,0.00062422,120]
[331433264,1720401044516,-1042.5,0.00062422,120]
[331433265,1720401044526,-1042.5,0.00062422,120]
[331433266,1720401044537,-1042.5,0.00062422,120]
[331433267,1720401044548,-1042.69204388,0.00062422,120]
[331433268,1720401044559,-1303.72,0.00062422,120]
[331433269,1720401044571,-1303.72,0.00062422,120]
[331433270,1720401044581,-1303.72,0.00062422,120]
[331433271,1720401044592,-1303.72,0.00062422,120]
[331433272,1720401044602,-1303.72,0.00062422,120]
[331433273,1720401044613,-1303.72,0.00062422,120]
[331433274,1720401044624,-1303.72,0.00062422,120]
[331433275,1720401044634,-1303.72,0.00062422,120]
[331433276,1720401044644,-1303.72,0.00062422,120]
[331433277,1720401044654,-1303.72,0.00062422,120]
[331433278,1720401044664,-1303.72,0.00062422,120]
[331433279,1720401044677,-1303.72,0.00062422,120]
[331433280,1720401044689,-1303.72,0.00062422,120]
[331433281,1720401044700,-1303.72,0.00062422,120]
[331433282,1720401044711,-1303.72,0.00062422,120]
[331433283,1720401044722,-1303.72,0.00062422,120]
[331433284,1720401044731,-1303.72,0.00062422,120]
[331433285,1720401044741,-1303.72,0.00062422,120]
[331433286,1720401044752,-1303.72,0.00062422,120]
[331433287,1720401044763,-1303.88880378,0.00062422,120]
[331433288,1720401044774,-834.23,0.00062422,120]
[331433289,1720401044785,-834.23,0.00062422,120]
[331433290,1720401044796,-834.23,0.00062422,120]
[331433291,1720401044808,-834.23,0.00062422,120]
[331433292,1720401044818,-834.23,0.00062422,120]
[331433293,1720401044829,-834.23,0.00062422,120]
[331433294,1720401044840,-834.23,0.00062422,120]
[331433295,1720401044850,-834.23,0.00062422,120]
[331433296,1720401044861,-834.23,0.00062422,120]
[331433297,1720401044872,-834.23,0.00062422,120]
[331433298,1720401044884,-834.23,0.00062422,120]
[331433299,1720401044895,-834.23,0.00062422,120]
[331433300,1720401044906,-834.23,0.00062422,120]
[331433301,1720401044917,-834.23,0.00062422,120]
[331433302,1720401044933,-298.95761564,0.00062423,61]
[331433303,1720401044943,-500.0,0.00062423,30]
[331433304,1720401044954,-70241.25254756,0.00062423,30]
[331433309,1720401047888,-183.3709037,0.00047164,2]
[331433310,1720401047898,-153.0,0.0006,120]
[331433311,1720401047908,-799.1690963,0.00062412,3]
[331433312,1720401047921,-769.8,0.00062412,3]
[331433336,1720401597001,-166.866668,0.00021096,2]
[331433340,1720401858393,-1433.67398634,0.0002557,4]
[331433341,1720401858518,-732.40568062,0.0002557,2]
[331433342,1720401890923,-284.30371793,0.0003,3]
[331433343,1720401890948,-816.18874586,0.00039999,21]
[331433344,1720401935340,-155.21817688,0.00030993,20]
[331433345,1720401935364,-451.07885988,0.00030993,4]
[331433346,1720401935387,-186.86247041,0.00030993,4]
[331433347,1720401935411,-879.23230837,0.00042398,4]
[331433348,1720401935433,-89.99831182,0.00044507,2]
[331433350,1720402029105,-159.921154,0.00042479,2]
[331433351,1720402029127,-374.0,0.00044506,3]
[331433352,1720402029148,-1598.44335151,0.00044507,4]
[331433353,1720402029170,-220.51056512,0.00044507,4]
[331433354,1720402029191,-70.52215418,0.00044507,2]
[331433355,1720402029212,-153.0,0.00046205,2]
[331433356,1720402029232,-153.0,0.00046205,2]
[331433357,1720402029253,-153.0,0.00047164,2]
[331433358,1720402029276,-153.0,0.00047164,2]
[331433359,1720402029298,-150.099936,0.00051,85]
[331433360,1720402029324,-1151.44288681,0.000618,120]
[331433361,1720402031107,-369.38176865,0.000618,120]
[331433362,1720402041098,-153.0,0.00046205,2]
[331433363,1720402041120,-1479.17534454,0.000618,120]
[331433364,1720402041140,-500.0,0.00061999,2]
[331433365,1720402041160,-1000.0,0.00062,120]
[331433366,1720402041182,-602.26444043,0.00062,120]
[331433367,1720402078954,170.593174,0.00021096,2]
[331433369,1720402171089,-160.09733992,0.00039994,4]
[331433370,1720402171111,-170.593174,0.00040411,2]
[331433371,1720402212130,605.52412605,0.0002557,7]
[331433372,1720402228322,2476.55589619,0.000325,60]
[331433373,1720402230286,668.92964396,0.00035,30]
[331433390,1720402232407,183.53241814,0.0003988,120]
[331433395,1720402233294,-618.99346542,0.000458,30]
[331433396,1720402233303,-170.593174,0.00059726,2]
[331433397,1720402233312,-312.996055,0.0006174,30]
[331433398,1720402233322,-397.73555957,0.00062,120]
[331433399,1720402233334,-150.59940171,0.00062079,120]
[331433400,1720402233343,-2000.0,0.000621,120]
[331433401,1720402233362,-2000.0,0.000621,120]
[331433402,1720402233375,-2000.0,0.000621,120]
[331433403,1720402233385,-2000.0,0.000621,120]
[331433404,1720402233394,-2000.0,0.000621,120]
[331433405,1720402233403,-2000.0,0.000621,120]
[331433406,1720402233413,-2000.0,0.000621,120]
[331433407,1720402233423,-2000.0,0.000621,120]
[331433408,1720402233432,-2000.0,0.000621,120]
[331433409,1720402233442,-2000.0,0.000621,120]
[331433410,1720402233452,-1326.99249659,0.00062298,84]
[331433411,1720402233462,-162.25135056,0.000623,28]
[331433412,1720402233471,-2166.0,0.00062323,120]
[331433413,1720402233481,-1071.26825688,0.0006238,120]
[331433414,1720402233490,-404.83299952,0.00062399,120]
[331433415,1720402233499,-500.0,0.00062399,120]
[331433416,1720402233508,-500.0,0.00062399,120]
[331433417,1720402233518,-500.0,0.00062399,120]
[331433418,1720402233527,-255.26140429,0.00062399,120]
[331433419,1720402233537,-500.0,0.00062399,120]
[331433420,1720402233547,-500.0,0.00062399,120]
[331433421,1720402233557,-235.56290883,0.00062399,120]
[331433422,1720402233566,-800.0,0.000624,120]
[331433423,1720402233576,-1000.0,0.000624,30]
[331433424,1720402233586,-1000.0,0.000624,30]
[331433426,1720402233595,-1000.0,0.000624,30]
[331433428,1720402233610,-1000.0,0.000624,30]
[331433429,1720402233620,-1000.0,0.000624,30]
[331433431,1720402233630,-805.2576891,0.000624,30]
[331433433,1720402233640,-1000.0,0.000624,30]
[331433435,1720402233650,-1000.0,0.000624,31]
[331433437,1720402233661,-1000.0,0.000624,32]
[331433439,1720402233672,-1000.0,0.000624,33]
[331433440,1720402233681,-1000.0,0.000624,34]
[331433441,1720402233691,-446.3526034,0.000624,36]
[331433442,1720402233701,-500.0,0.000624,30]
[331433444,1720402233711,-1289.92538026,0.000624,30]
[331433445,1720402233720,-1259.00295224,0.000624,40]
[331433447,1720402233730,-150.0,0.000624,30]
[331433448,1720402233739,-150.0,0.000624,30]
[331433449,1720402233748,-150.0,0.000624,30]
[331433450,1720402233757,-150.0,0.000624,30]
[331433451,1720402233766,-150.0,0.000624,30]
[331433452,1720402233776,-150.0,0.000624,30]
[331433453,1720402233785,-150.0,0.000624,30]
[331433454,1720402233794,-500.0,0.000624,41]
[331433455,1720402233803,-500.0,0.000624,41]
[331433456,1720402233812,-500.0,0.000624,41]
[331433457,1720402233821,-500.0,0.0006241,31]
[331433458,1720402233831,-500.0,0.0006241,31]
[331433459,1720402233840,-500.0,0.0006241,31]
[331433460,1720402233852,-500.0,0.0006241,31]
[331433461,1720402233861,-425.407741,0.0006241,31]
[331433462,1720402233870,-500.0,0.0006241,40]
[331433463,1720402233879,-500.0,0.0006241,40]
[331433464,1720402233888,-500.0,0.0006241,40]
[331433465,1720402233897,-256.721229,0.0006241,40]
[331433466,1720402233907,-500.0,0.00062412,120]
[331433467,1720402233916,-509.36767525,0.00062412,120]
[331433468,1720402233926,-509.85197068,0.00062412,120]
[331433469,1720402233936,-509.30613705,0.00062412,120]
[331433470,1720402233945,-611.11792994,0.00062412,120]
[331433471,1720402233955,-500.0,0.00062412,120]
[331433472,1720402233964,-500.0,0.00062412,120]
[331433473,1720402233973,-500.0,0.00062412,120]
[331433474,1720402233982,-500.0,0.00062412,120]
[331433475,1720402233992,-500.0,0.00062412,120]
[331433476,1720402234001,-500.0,0.00062412,120]
[331433477,1720402234011,-500.0,0.00062412,120]
[331433478,1720402234019,-500.0,0.00062412,120]
[331433479,1720402234029,-500.0,0.00062412,120]
[331433480,1720402234038,-500.0,0.00062412,120]
[331433481,1720402234051,-275.63875747,0.00062412,120]
[331433482,1720402234061,-500.0,0.00062412,120]
[331433483,1720402234172,-15171.49,0.00062413,3]
[331433484,1720402234192,-12676.01,0.00062413,3]
[331433485,1720402234202,-500.0,0.0006242,31]
[331433486,1720402234212,-500.0,0.0006242,32]
[331433487,1720402234221,-500.0,0.0006242,45]
[331433488,1720402234231,-500.0,0.0006242,45]
[331433489,1720402234240,-500.0,0.0006242,45]
[331433490,1720402234250,-500.0,0.0006242,45]
[331433491,1720402234260,-500.0,0.0006242,45]
[331433492,1720402234269,-500.0,0.0006242,45]
[331433493,1720402234279,-500.0,0.0006242,45]
[331433494,1720402234288,-446.9794971,0.0006242,45]
[331433495,1720402234297,-577.03,0.00062422,120]
[331433496,1720402234307,-500.0,0.00062422,120]
[331433498,1720402234316,-500.0,0.00062422,120]
[331433499,1720402234325,-500.0,0.00062422,120]
[331433500,1720402234339,-500.0,0.00062422,120]
[331433501,1720402234350,-500.0,0.00062422,120]
[331433502,1720402234359,-500.0,0.00062422,120]
[331433503,1720402234368,-500.0,0.00062422,120]
[331433504,1720402234378,-500.0,0.00062422,120]
[331433505,1720402234387,-500.0,0.00062422,120]
[331433506,1720402234396,-501.0,0.00062422,120]
[331433507,1720402234405,-299.46,0.00062422,120]
[331433508,1720402234415,-400.0,0.00062422,120]
[331433509,1720402234424,-500.0,0.00062422,120]
[331433510,1720402234433,-585.0,0.00062422,120]
[331433511,1720402234442,-436.06,0.00062422,120]
[331433512,1720402234451,-500.0,0.00062422,120]
[331433513,1720402234460,-500.0,0.00062422,120]
[331433514,1720402234470,-504.9631955,0.00062422,120]
[331433515,1720402234479,-500.0,0.00062422,120]
[331433516,1720402234488,-500.0,0.00062422,120]
[331433517,1720402234497,-500.0,0.00062422,120]
[331433518,1720402234506,-500.0,0.00062422,120]
[331433519,1720402234516,-500.0,0.00062422,120]
[331433520,1720402234524,-500.0,0.00062422,120]
[331433521,1720402234534,-500.0,0.00062422,120]
[331433522,1720402234543,-500.0,0.00062422,120]
[331433523,1720402234553,-224.93377773,0.00062422,120]
[331433524,1720402234562,-96902.50303486,0.00062423,30]
[331433547,1720402238803,-3770.2470117,0.00062423,30]
[331433594,1720402243745,-500.0,0.000624,41]
[331433595,1720402243754,-6212.80440127,0.00062423,30]
[331433596,1720402243767,-9485.70929725,0.00062423,30]
[331433597,1720402243797,-298901.36504679,0.00062423,30]
[331433605,1720402245869,261.33237172,0.00030993,4]
[331433612,1720402248656,-543.8,0.000528,120]
[331433615,1720402273344,271.9518455,0.00039325,120]
[331433616,1720402286122,155.40087376,0.00043834,4]
[331433617,1720402304108,155.40087376,0.00043834,4]
[331433624,1720402527425,1419.37029768,0.00039326,120]
[331433634,1720402631286,243.02074665,0.00039326,30]
[331433638,1720402650637,161.73423252,0.00039326,120]
[331433655,1720403024945,-25000.0,0.00034562,4]
[331433657,1720403029325,-165.2307468,0.00031146,120]
[331433658,1720403029357,-167.81845518,0.000349,2]
[331433659,1720403029382,-1180.70356094,0.00035,2]
[331433660,1720403029408,-202.00719974,0.0004,30]
[331433661,1720403029433,-1105.9792493,0.0004,15]
[331433662,1720403029458,-151.0,0.0004,120]
[331433663,1720403030018,22027.26078804,0.00034388,4]
[331433664,1720403055674,-16361.28287345,0.00034388,4]
[331433666,1720403107800,344.48425047,0.00034388,4]
[331433667,1720403112353,8294.23287608,0.00025,2]
[331433668,1720403112378,151.76712392,0.00025,2]
[331433670,1720403154166,-542.0,0.00041666,120]
[331433671,1720403154203,-895.23028829,0.00041682,4]
[331433674,1720403218780,170.432483,0.00021096,2]
[331433675,1720403233101,-160.520466,0.00037077,2]
[331433676,1720403233122,-439.479534,0.00039177,4]
[331433677,1720403234097,-1613.65142548,0.00039177,4]
[331433679,1720403347161,-10393.8613508,0.0003467,4]
[331433680,1720403360116,-4257.7385952,0.0003467,4]
[331433681,1720403366102,-6675.36875483,0.0003467,4]
[331433682,1720403366123,-400.0,0.00034998,2]
[331433683,1720403366144,-971.1298618,0.00043834,4]
[331433684,1720403366170,-170.432483,0.00044274,2]
[331433685,1720403366197,-2928.35561207,0.00045,120]
[331433686,1720403380282,816.22581449,0.00043834,21]
[331433707,1720403433044,-151.0,0.00046247,120]
[331433708,1720403433054,-154.9777108,0.00047229,2]
[331433709,1720403433064,-30920.44764087,0.000483,120]
[331433710,1720403433074,-165.77775781,0.000499,28]
[331433711,1720403433083,-260.0,0.0005,120]
[331433712,1720403433093,-2523.76173422,0.00051,14]
[331433713,1720403433102,-213.108427,0.00051,85]
[331433714,1720403433111,-151.0,0.00052493,120]
[331433715,1720403433121,-2879.54544911,0.000528,120]
[331433716,1720403433130,-4501.75547339,0.000528,120]
[331433717,1720403433139,-17061.57496066,0.00054545,4]
[331433718,1720403433148,-151.0,0.0005874,120]
[331433719,1720403433158,-15661.72379617,0.00059,2]
[331433720,1720403433167,-691.49128645,0.00059302,120]
[331433721,1720403433176,-1393.76767121,0.0006,120]
[331433722,1720403433185,-500.0,0.00060273,120]
[331433723,1720403433195,-500.0,0.00060273,120]
[331433724,1720403433205,-2055.81,0.00060273,120]
[331433725,1720403433215,-2055.81,0.00060273,120]
[331433726,1720403433226,-500.0,0.00060273,120]
[331433727,1720403433236,-500.0,0.00060273,120]
[331433728,1720403433246,-173.99843704,0.00060273,120]
[331433729,1720403433256,-181.05652754,0.00060273,120]
[331433730,1720403433266,-159.59996874,0.00060273,120]
[331433731,1720403433276,-180.71333506,0.00060273,120]
[331433732,1720403433287,-525.18767723,0.00060273,120]
[331433733,1720403433297,-407.03734153,0.00060273,120]
[331433734,1720403433308,-173.44407233,0.00060273,120]
[331433735,1720403433318,-500.0,0.00060273,120]
[331433736,1720403433327,-500.0,0.00060273,120]
[331433737,1720403433336,-894.06,0.00060273,120]
[331433738,1720403433346,-894.06,0.00060273,120]
[331433739,1720403433355,-500.24382828,0.00060273,120]
[331433740,1720403433364,-386.51422723,0.00060273,120]
[331433741,1720403433374,-238.77980863,0.00060273,120]
[331433742,1720403433383,-226.02081852,0.00060273,120]
[331433743,1720403433392,-505.0495452,0.00060273,120]
[331433744,1720403433402,-513.9321426,0.00060273,120]
[331433745,1720403433411,-509.14157313,0.00060273,120]
[331433746,1720403433421,-536.68195671,0.00060273,120]
[331433747,1720403433431,-167.70469957,0.00060273,120]
[331433748,1720403433440,-507.83945506,0.00060273,120]
[331433749,1720403433449,-508.49342238,0.00060273,120]
[331433750,1720403433460,-529.93098363,0.00060273,120]
[331433751,1720403433469,-515.02065842,0.00060273,120]
[331433752,1720403433478,-517.20444976,0.00060273,120]
[331433753,1720403433488,-500.0,0.00060273,120]
[331433754,1720403433498,-506.70309239,0.00060273,120]
[331433755,1720403433507,-210.0681247,0.00060273,120]
[331433756,1720403433516,-3751.96570265,0.00060667,120]
[331433757,1720403433526,-309.6328,0.00061,120]
[331433758,1720403433535,-8245.39,0.0006137,3]
[331433759,1720403433544,-9894.47,0.0006138,3]
[331433760,1720403433553,-513.5312704,0.00061389,120]
[331433761,1720403433563,-500.0,0.00061389,120]
[331433762,1720403433572,-500.00965288,0.00061389,120]
[331433763,1720403433582,-4013.26,0.0006139,3]
[331433764,1720403433591,-894.06,0.00061399,120]
[331433765,1720403433601,-2000.0,0.000614,120]
[331433766,1720403433611,-2000.0,0.000614,120]
[331433767,1720403433620,-2000.0,0.000614,120]
[331433768,1720403433630,-2000.0,0.000614,120]
[331433769,1720403433640,-2000.0,0.000614,120]
[331433770,1720403433650,-2000.0,0.000614,120]
[331433771,1720403433659,-2000.0,0.000614,120]
[331433772,1720403433668,-2000.0,0.000614,120]
[331433773,1720403433678,-2000.0,0.000614,120]
[331433774,1720403433687,-2000.0,0.000614,120]
[331433775,1720403433697,-2000.0,0.000614,120]
[331433776,1720403433709,-2000.0,0.000614,120]
[331433777,1720403433723,-2000.0,0.000614,120]
[331433778,1720403433733,-2000.0,0.000614,120]
[331433779,1720403433742,-1269.0,0.000614,120]
[331433780,1720403433752,-3000.0,0.000618,120]
[331433781,1720403433763,-500.0,0.00061999,120]
[331433782,1720403433772,-7517.13951888,0.00062,120]
[331433783,1720403433782,-150.29238822,0.00062157,7]
[331433784,1720403433795,-959.69067263,0.00062223,120]
[331433785,1720403433805,-500.0,0.00062299,120]
[331433786,1720403433816,-2055.81,0.00062299,120]
[331433787,1720403433825,-500.0,0.00062299,120]
[331433788,1720403433835,-500.0,0.000623,35]
[331433789,1720403433845,-500.0,0.000623,35]
[331433790,1720403433855,-500.0,0.000623,35]
[331433791,1720403433864,-500.0,0.000623,35]
[331433792,1720403433875,-500.0,0.000623,35]
[331433793,1720403433884,-500.0,0.000623,35]
[331433794,1720403433894,-500.0,0.000623,35]
[331433795,1720403433904,-500.0,0.000623,35]
[331433796,1720403433913,-500.0,0.000623,35]
[331433797,1720403433923,-650.151976,0.000623,35]
[331433798,1720403433932,-500.0,0.00062321,120]
[331433799,1720403433942,-894.06,0.00062321,120]
[331433800,1720403433951,-25000.0,0.00062322,120]
[331433801,1720403433963,-510.26779255,0.00062399,120]
[331433802,1720403433972,-515.42529133,0.00062399,120]
[331433803,1720403433981,-500.0,0.00062399,120]
[331433804,1720403433992,-500.0,0.000624,41]
[331433805,1720403434002,-500.0,0.000624,41]
[331433806,1720403434012,-500.0,0.000624,41]
[331433807,1720403434021,-151.0,0.000624,60]
[331433808,1720403434031,-894.06,0.00062409,120]
[331433809,1720403434040,-500.0,0.0006241,40]
[331433810,1720403434050,-500.0,0.0006241,40]
[331433811,1720403434060,-500.0,0.0006241,40]
[331433812,1720403434070,-500.0,0.0006241,40]
[331433813,1720403434080,-500.0,0.0006241,40]
[331433814,1720403434090,-500.0,0.0006241,40]
[331433815,1720403434099,-500.0,0.0006241,40]
[331433816,1720403434109,-500.0,0.0006241,40]
[331433817,1720403434119,-500.0,0.0006241,40]
[331433818,1720403434128,-500.0,0.0006241,40]
[331433819,1720403434138,-500.0,0.0006241,40]
[331433820,1720403434147,-500.0,0.0006241,40]
[331433821,1720403434157,-500.0,0.0006241,40]
[331433822,1720403434166,-500.0,0.0006241,40]
[331433823,1720403434176,-500.0,0.0006241,40]
[331433824,1720403434186,-500.0,0.0006241,40]
[331433825,1720403434195,-500.0,0.0006241,40]
[331433826,1720403434206,-500.0,0.0006241,40]
[331433827,1720403434215,-500.0,0.0006241,40]
[331433828,1720403434225,-500.0,0.0006241,40]
[331433829,1720403434234,-500.0,0.0006241,40]
[331433830,1720403434243,-500.0,0.0006241,40]
[331433831,1720403434253,-500.0,0.0006241,40]
[331433832,1720403434266,-500.0,0.0006241,40]